fUSD/lending_fUSD_20240125
["ID","MTS","AMOUNT","RATE_DAILY","PERIOD"]
[312724088,1706189441382,-150.77,0.0004599,2]
[312724090,1706189441393,-150.77,0.0004599,2]
[312724092,1706189441403,-150.77,0.0004599,2]
[312724093,1706189441413,-150.77,0.0004599,2]
[312724094,1706189441424,-384478.07851065,0.00046,2]
[312724095,1706189441434,-625.26783671,0.00046211,5]
[312724096,1706189441445,-426.0,0.0004629,2]
[312724097,1706189441456,-292.31,0.00046301,2]
[312724098,1706189441466,-292.31,0.00046301,2]
[312724099,1706189441476,-292.31,0.00046301,2]
[312724100,1706189441487,-292.31,0.00046301,2]
[312724101,1706189441497,-292.31,0.00046301,2]
[312724102,1706189441507,-292.31,0.00046301,2]
[312724103,1706189441517,-292.31,0.00046301,2]
[312724104,1706189441528,-292.31,0.00046301,2]
[312724105,1706189441538,-292.31,0.00046301,2]
[312724106,1706189441548,-292.31,0.00046301,2]
[312724107,1706189441560,-292.31,0.00046301,2]
[312724108,1706189441571,-292.31,0.00046301,2]
[312724109,1706189441581,-292.31,0.00046301,2]
[312724110,1706189441591,-292.31,0.00046301,2]
[312724111,1706189441602,-292.31,0.00046301,2]
[312724112,1706189441613,-292.31,0.00046301,2]
[312724113,1706189441623,-164.5,0.00046301,2]
[312724114,1706189441637,-419.17,0.00046301,2]
[312724115,1706189441648,-419.17,0.00046301,2]
[312724116,1706189441658,-251.83,0.00046301,2]
[312724117,1706189441668,-150.0,0.00046431,2]
[312724118,1706189441679,-2751.32,0.00046446,2]
[312724119,1706189441689,-375.0,0.00046575,120]
[312724120,1706189441699,-150.77,0.00046576,2]
[312724121,1706189441711,-2653.94528997,0.00046586,20]
[312724122,1706189441721,-161.67377752,0.00046588,4]
[312724123,1706189441732,-196.79927451,0.00046589,4]
[312724124,1706189441742,-686.0,0.0004659,2]
[312724125,1706189441753,-176.0,0.0004659,2]
[312724126,1706189441763,-503.55191022,0.000466,2]
[312724127,1706189441773,-8000.0,0.000466,2]
[312724128,1706189441783,-1813.51,0.00046614,2]
[312724131,1706189441793,-625.26783671,0.00046819,5]
[312724133,1706189441803,-563.91,0.00046849,2]
[312724134,1706189441817,-1034.30317003,0.0004704,4]
[312724135,1706189441830,-152.0,0.00047119,4]
[312724136,1706189441840,-150.0,0.00047123,2]
[312724137,1706189441850,-150.0,0.00047123,2]
[312724138,1706189441860,-150.0,0.00047123,2]
[312724139,1706189441870,-150.0,0.00047123,2]
[312724140,1706189441880,-150.0,0.00047123,2]
[312724141,1706189441890,-150.0,0.00047123,2]
[312724142,1706189441901,-199.31,0.00047123,2]
[312724143,1706189441911,-3931.71094278,0.00047228,17]
[312724144,1706189441921,-150.77,0.00047289,2]
[312724145,1706189441931,-150.77,0.00047289,2]
[312724146,1706189441941,-150.77,0.00047289,2]
[312724147,1706189441951,-85404.7699241,0.00047299,11]
[312724148,1706189441961,-394.66,0.00047302,2]
[312724149,1706189441971,-160.33309341,0.00047331,30]
[312724150,1706189441982,-625.26783671,0.00047427,5]
[312724151,1706189441992,-153.90506382,0.00047437,30]
[312724152,1706189442001,-150.0,0.0004744,2]
[312724153,1706189442012,-160.83203841,0.00047444,30]
[312724154,1706189442022,-180.84621878,0.00047452,30]
[312724155,1706189442032,-162.32786334,0.00047489,30]
[312724156,1706189442043,-708.0,0.000475,30]
[312724157,1706189442053,-1000.0,0.000475,30]
[312724158,1706189442065,-201.0,0.0004753,35]
[312724159,1706189442075,-150.77,0.00047606,2]
[312724160,1706189442084,-156.51295811,0.00047609,30]
[312724161,1706189442094,-292.31,0.00047616,2]
[312724162,1706189442104,-292.31,0.00047616,2]
[312724163,1706189442113,-292.31,0.00047616,2]
[312724164,1706189442123,-292.31,0.00047616,2]
[312724165,1706189442133,-292.31,0.00047616,2]
[312724166,1706189442143,-292.31,0.00047616,2]
[312724167,1706189442153,-292.31,0.00047616,2]
[312724168,1706189442163,-292.31,0.00047616,2]
[312724169,1706189442173,-180.84621878,0.00047769,30]
[312724170,1706189442183,-153.46651434,0.00047797,30]
[312724171,1706189442193,-174.13403783,0.00047805,30]
[312724172,1706189442203,-747.0,0.0004789,2]
[312724173,1706189442213,-211.0,0.0004789,2]
[312724174,1706189442223,-61776.47781686,0.000479,5]
[312724175,1706189442234,-8000.0,0.000479,2]
[312724176,1706189442244,-180.84621878,0.00047901,30]
[312724177,1706189442255,-180.84621878,0.00047933,30]
[312724178,1706189442266,-409.25,0.00047945,2]
[312724179,1706189442276,-409.25,0.00047945,2]
[312724180,1706189442286,-150.77,0.0004799,2]
[312724181,1706189442296,-150.77,0.0004799,2]
[312724182,1706189442308,-150.77,0.0004799,2]
[312724183,1706189442319,-1174.0,0.0004799,2]
[312724184,1706189442329,-301.0,0.0004799,2]
[312724185,1706189442339,-150.77,0.0004799,2]
[312724186,1706189442350,-150.77,0.0004799,2]
[312724187,1706189442360,-150.77,0.0004799,2]
[312724188,1706189442370,-150.77,0.0004799,2]
[312724189,1706189442381,-150.77,0.0004799,2]
[312724190,1706189442392,-150.77,0.0004799,2]
[312724191,1706189442402,-150.77,0.0004799,2]
[312724192,1706189442412,-150.77,0.0004799,2]
[312724193,1706189442423,-150.77,0.0004799,2]
[312724194,1706189442718,-832.27573461,0.00047997,2]
[312724195,1706189442739,-88438.75212864,0.00048,28]
[312724196,1706189442755,-943.0,0.00048,16]
[312724197,1706189442765,-225323.89037593,0.00048,10]
[312724198,1706189442774,-300.0,0.00048,30]
[312724199,1706189442783,-17873.49078507,0.00048,2]
[312724200,1706189442792,-180.84621878,0.00048004,30]
[312724201,1706189442803,-625.26783671,0.00048034,5]
[312724202,1706189442813,-156.51295811,0.00048062,30]
[312724203,1706189442822,-180.84621878,0.00048128,30]
[312724204,1706189442832,-150.0125,0.00048198,24]
[312724205,1706189442842,-1000.0,0.0004822,10]
[312724206,1706189442851,-1005.4372779,0.000483,4]
[312724207,1706189442861,-1086.44818987,0.00048329,4]
[312724208,1706189442870,-1072.87641346,0.00048329,4]
[312724209,1706189442879,-150.77,0.0004839,2]
[312724210,1706189442888,-150.77,0.0004839,2]
[312724211,1706189442898,-39034.8057,0.000484,5]
[312724212,1706189442907,-150.0,0.0004845,2]
[312724213,1706189442917,-160.33309341,0.00048484,30]
[312724214,1706189442926,-449.0,0.0004849,2]
[312724215,1706189442935,-151.0125,0.00048498,24]
[312724216,1706189442945,-259.82,0.000485,6]
[312724217,1706189442955,-259.82,0.000485,6]
[312724218,1706189442964,-259.82,0.000485,6]
[312724219,1706189442974,-259.82,0.000485,6]
[312724220,1706189442983,-259.82,0.000485,6]
[312724221,1706189442993,-259.82,0.000485,6]
[312724222,1706189443003,-259.82,0.000485,6]
[312724223,1706189443012,-259.82,0.000485,6]
[312724224,1706189443022,-259.82,0.000485,6]
[312724225,1706189443032,-259.82,0.000485,6]
[312724226,1706189443041,-259.82,0.000485,6]
[312724227,1706189443049,-259.82,0.000485,6]
[312724228,1706189443060,-259.82,0.000485,6]
[312724229,1706189443069,-259.82,0.000485,6]
[312724230,1706189443078,-259.82,0.000485,6]
[312724231,1706189443087,-259.82,0.000485,6]
[312724234,1706189443096,-259.82,0.000485,6]
[312724237,1706189443105,-259.82,0.000485,6]
[312724240,1706189443115,-259.82,0.000485,6]
[312724242,1706189443124,-259.82,0.000485,6]
[312724245,1706189443133,-161.4638207,0.00048534,30]
[312724248,1706189443142,-6858.21705579,0.00048594,2]
[312724251,1706189443152,-5000.0,0.00048599,10]
[312724253,1706189443161,-625.26783671,0.00048642,5]
[312724255,1706189443170,-1000.0,0.00048656,2]
[312724257,1706189443179,-161.4638207,0.0004867,30]
[312724259,1706189443188,-160.83203841,0.00048702,30]
[312724261,1706189443198,-180.84621878,0.00048712,30]
[312724263,1706189443207,-180.84621878,0.00048751,30]
[312724265,1706189443217,-150.77,0.00048788,2]
[312724267,1706189443226,-10000.0,0.00048798,4]
[312724269,1706189443235,-150.0125,0.00048798,24]
[312724270,1706189443245,-154.29738012,0.00048838,30]
[312724272,1706189443255,-1042.50792894,0.00048866,5]
[312724274,1706189443264,-180.84621878,0.00048875,30]
[312724276,1706189443274,-296.0,0.0004889,2]
[312724278,1706189443283,-160.83203841,0.00048921,30]
[312724280,1706189443292,-180.84621878,0.00048937,30]
[312724282,1706189443301,-200.0,0.00048987,18]
[312724284,1706189443312,-150.77,0.0004899,2]
[312724286,1706189443321,-150.77,0.0004899,2]
[312724288,1706189443331,-150.77,0.0004899,2]
[312724290,1706189443339,-1697.0,0.0004899,2]
[312724292,1706189443349,-1249.0,0.0004899,2]
[312724294,1706189443360,-150.77,0.0004899,2]
[312724296,1706189443370,-150.77,0.0004899,2]
[312724298,1706189443379,-150.77,0.0004899,2]
[312724300,1706189443388,-150.77,0.0004899,2]
[312724302,1706189443397,-100000.0,0.00049,29]
[312724304,1706189443407,-18351.77933255,0.00049,5]
[312724306,1706189443416,-12947.0,0.00049,3]
[312724308,1706189443425,-3216.52066962,0.00049,4]
[312724309,1706189443434,-26155.0,0.00049,2]
[312724310,1706189443444,-50041.8002,0.00049,2]
[312724311,1706189443452,-180.84621878,0.00049045,30]
[312724312,1706189443462,-150.0,0.00049115,7]
[312724313,1706189443471,-150.0,0.00049129,7]
[312724314,1706189443481,-1005.15711095,0.00049133,5]
[312724315,1706189443490,-150.77,0.0004916,2]
[312724316,1706189443499,-176.67396009,0.0004917,7]
[312724317,1706189443509,-150.0,0.00049176,7]
[312724318,1706189443517,-150.0125,0.00049198,24]
[312724319,1706189443527,-150.0,0.00049199,7]
[312724320,1706189443536,-224.14406348,0.00049212,4]
[312724321,1706189443546,-155.0,0.00049213,4]
[312724322,1706189443555,-155.39790423,0.00049213,4]
[312724323,1706189443567,-685.84775104,0.00049213,4]
[312724324,1706189443576,-185.1629869,0.00049213,4]
[312724325,1706189443585,-244.3410214,0.00049213,4]
[312724326,1706189443595,-617.73018804,0.00049213,4]
[312724327,1706189443606,-155.95434929,0.00049213,4]
[312724328,1706189443617,-625.26783671,0.00049249,5]
[312724329,1706189443626,-150.0,0.0004925,7]
[312724330,1706189443635,-150.0,0.00049259,7]
[312724331,1706189443644,-150.0,0.00049268,7]
[312724332,1706189443656,-332.0,0.0004929,2]
[312724333,1706189443665,-173.73,0.000493,7]
[312724334,1706189443674,-1500.0,0.000493,2]
[312724335,1706189443683,-8000.0,0.000493,5]
[312724336,1706189443692,-150.0,0.00049301,7]
[312724337,1706189443702,-150.0,0.00049302,7]
[312724338,1706189443716,-814.74,0.00049305,10]
[312724339,1706189443725,-678.95,0.00049305,10]
[312724340,1706189443734,-565.8,0.00049305,10]
[312724341,1706189443743,-150.77,0.00049305,2]
[312724342,1706189443752,-500.0,0.00049315,15]
[312724343,1706189443762,-283.22105095,0.00049315,9]
[312724344,1706189443771,-500.0,0.00049315,14]
[312724345,1706189443780,-10000.0,0.00049315,3]
[312724346,1706189443789,-500.0,0.00049315,14]
[312724347,1706189443798,-500.0,0.00049315,31]
[312724348,1706189443807,-500.0,0.00049315,2]
[312724349,1706189443818,-500.0,0.00049315,31]
[312724350,1706189443828,-578.99,0.00049315,31]
[312724351,1706189443837,-732.03,0.00049315,31]
[312724352,1706189443846,-500.0,0.00049315,2]
[312724353,1706189443856,-662.95,0.00049315,31]
[312724354,1706189443865,-500.0,0.00049315,2]
[312724355,1706189443873,-500.0,0.00049315,31]
[312724356,1706189443882,-500.0,0.00049315,31]
[312724357,1706189443891,-498.22,0.00049315,2]
[312724358,1706189443900,-500.0,0.00049315,31]
[312724359,1706189443909,-500.0,0.00049315,31]
[312724360,1706189443918,-500.0,0.00049315,31]
[312724361,1706189443927,-539.61536666,0.00049315,31]
[312724362,1706189443936,-500.0,0.00049315,31]
[312724363,1706189443945,-512.7520943,0.00049315,31]
[312724364,1706189443955,-500.0,0.00049315,31]
[312724365,1706189443965,-500.0,0.00049315,31]
[312724366,1706189443975,-168.07312528,0.00049315,31]
[312724367,1706189443986,-508.11030379,0.00049315,31]
[312724368,1706189443996,-500.0,0.00049315,31]
[312724369,1706189444006,-500.0,0.00049315,31]
[312724370,1706189444015,-500.0,0.00049315,31]
[312724371,1706189444024,-500.0,0.00049315,31]
[312724372,1706189444033,-500.0,0.00049315,31]
[312724373,1706189444042,-500.0,0.00049315,31]
[312724374,1706189444051,-500.0,0.00049315,31]
[312724375,1706189444063,-500.0,0.00049315,31]
[312724376,1706189444072,-598.58441738,0.00049315,31]
[312724377,1706189444081,-706.68,0.00049315,31]
[312724378,1706189444091,-500.0,0.00049315,31]
[312724379,1706189444100,-500.0,0.00049315,31]
[312724380,1706189444109,-500.0,0.00049315,31]
[312724381,1706189444118,-500.0,0.00049315,31]
[312724382,1706189444127,-500.0,0.00049315,31]
[312724383,1706189444136,-500.0,0.00049315,31]
[312724384,1706189444146,-500.0,0.00049315,31]
[312724385,1706189444155,-511.95,0.00049315,31]
[312724386,1706189444163,-500.0,0.00049315,31]
[312724387,1706189444172,-500.0,0.00049315,31]
[312724388,1706189444181,-500.0,0.00049315,31]
[312724389,1706189444191,-500.0,0.00049315,31]
[312724390,1706189444200,-500.0,0.00049315,31]
[312724391,1706189444209,-500.0,0.00049315,31]
[312724392,1706189444219,-500.0,0.00049315,31]
[312724393,1706189444228,-500.0,0.00049315,31]
[312724394,1706189444237,-500.0,0.00049315,31]
[312724395,1706189444247,-386.74427151,0.00049315,31]
[312724396,1706189444257,-500.0,0.00049315,31]
[312724397,1706189444266,-568.29845925,0.00049315,31]
[312724398,1706189444275,-500.0,0.00049315,31]
[312724399,1706189444285,-500.0,0.00049315,31]
[312724400,1706189444295,-500.0,0.00049315,31]
[312724401,1706189444303,-500.0,0.00049315,31]
[312724402,1706189444314,-500.0,0.00049315,31]
[312724403,1706189444323,-500.0,0.00049315,31]
[312724404,1706189444332,-500.0,0.00049315,31]
[312724405,1706189444341,-500.0,0.00049315,31]
[312724406,1706189444350,-586.25,0.00049315,31]
[312724407,1706189444359,-500.0,0.00049315,31]
[312724408,1706189444368,-500.0,0.00049315,31]
[312724409,1706189444377,-500.0,0.00049315,31]
[312724410,1706189444386,-500.0,0.00049315,31]
[312724411,1706189444396,-500.0,0.00049315,31]
[312724412,1706189444405,-500.0,0.00049315,31]
[312724413,1706189444416,-1035.06831971,0.00049315,2]
[312724414,1706189444425,-500.0,0.00049315,31]
[312724415,1706189444434,-500.0,0.00049315,31]
[312724416,1706189444443,-847.89,0.00049315,31]
[312724417,1706189444452,-500.0,0.00049315,31]
[312724418,1706189444461,-500.0,0.00049315,31]
[312724419,1706189444470,-847.27,0.00049315,31]
[312724420,1706189444479,-553.41,0.00049315,2]
[312724421,1706189444488,-500.0,0.00049315,31]
[312724422,1706189444497,-500.0,0.00049315,31]
[312724423,1706189444506,-500.0,0.00049315,31]
[312724424,1706189444515,-552.54,0.00049315,31]
[312724425,1706189444524,-500.0,0.00049315,31]
[312724426,1706189444533,-500.0,0.00049315,31]
[312724427,1706189444542,-500.0,0.00049315,31]
[312724428,1706189444551,-500.0,0.00049315,31]
[312724429,1706189444562,-500.0,0.00049315,31]
[312724430,1706189444570,-500.0,0.00049315,31]
[312724431,1706189444579,-500.0,0.00049315,31]
[312724432,1706189444588,-500.0,0.00049315,31]
[312724434,1706189444597,-500.0,0.00049315,31]
[312724436,1706189444608,-500.0,0.00049315,31]
[312724438,1706189444617,-1000.0,0.00049315,7]
[312724439,1706189444626,-500.0,0.00049315,31]
[312724441,1706189444638,-500.0,0.00049315,31]
[312724443,1706189444647,-500.0,0.00049315,31]
[312724446,1706189444657,-500.0,0.00049315,31]
[312724449,1706189444666,-500.0,0.00049315,10]
[312724451,1706189444675,-500.0,0.00049315,31]
[312724453,1706189444684,-533.04,0.00049315,31]
[312724455,1706189444693,-500.0,0.00049315,31]
[312724457,1706189444702,-500.0,0.00049315,31]
[312724459,1706189444711,-500.0,0.00049315,31]
[312724461,1706189444721,-500.0,0.00049315,31]
[312724464,1706189444730,-500.0,0.00049315,31]
[312724467,1706189444739,-500.0,0.00049315,31]
[312724470,1706189444748,-565.44214804,0.00049315,31]
[312724473,1706189444757,-500.0,0.00049315,31]
[312724477,1706189444768,-500.0,0.00049315,31]
[312724480,1706189444776,-500.0,0.00049315,31]
[312724483,1706189444785,-500.0,0.00049315,31]
[312724486,1706189444795,-521.8970409,0.00049315,31]
[312724488,1706189444806,-1263.99,0.00049315,31]
[312724490,1706189444816,-500.0,0.00049315,31]
[312724492,1706189444825,-500.0,0.00049315,31]
[312724494,1706189444834,-500.0,0.00049315,31]
[312724495,1706189444842,-500.0,0.00049315,31]
[312724497,1706189444851,-500.0,0.00049315,31]
[312724498,1706189444861,-500.0,0.00049315,31]
[312724499,1706189444870,-201.34000548,0.00049315,14]
[312724501,1706189444879,-500.0,0.00049315,31]
[312724503,1706189444888,-500.0,0.00049315,31]
[312724505,1706189444897,-500.0,0.00049315,31]
[312724507,1706189444906,-4443.62,0.00049315,31]
[312724509,1706189444915,-500.0,0.00049315,31]
[312724511,1706189444924,-500.0,0.00049315,31]
[312724513,1706189444933,-500.0,0.00049315,31]
[312724515,1706189444942,-500.0,0.00049315,31]
[312724517,1706189444951,-500.0,0.00049315,31]
[312724519,1706189444961,-500.0,0.00049315,31]
[312724521,1706189444971,-500.0,0.00049315,31]
[312724523,1706189444980,-500.0,0.00049315,31]
[312724525,1706189444989,-478.58011645,0.00049315,31]
[312724527,1706189444999,-5133.55,0.00049315,5]
[312724529,1706189445008,-876.57,0.00049315,31]
[312724531,1706189445017,-793.58,0.00049315,31]
[312724533,1706189445027,-500.0,0.00049315,31]
[312724535,1706189445036,-500.0,0.00049315,31]
[312724537,1706189445045,-500.0,0.00049315,31]
[312724539,1706189445055,-500.0,0.00049315,31]
[312724541,1706189445066,-500.0,0.00049315,31]
[312724543,1706189445075,-605.29,0.00049315,31]
[312724545,1706189445083,-500.0,0.00049315,31]
[312724547,1706189445092,-500.0,0.00049315,31]
[312724549,1706189445101,-798.73,0.00049315,31]
[312724551,1706189445110,-741.46,0.00049315,31]
[312724552,1706189445118,-500.0,0.00049315,31]
[312724554,1706189445127,-500.0,0.00049315,31]
[312724556,1706189445136,-500.0,0.00049315,31]
[312724558,1706189445145,-500.0,0.00049315,31]
[312724560,1706189445153,-522.59,0.00049315,31]
[312724562,1706189445162,-500.0,0.00049315,31]
[312724564,1706189445171,-500.0,0.00049315,31]
[312724566,1706189445179,-3848.63,0.00049315,31]
[312724568,1706189445188,-504.32175764,0.00049315,31]
[312724570,1706189445197,-1440.42,0.00049315,31]
[312724572,1706189445206,-500.0,0.00049315,31]
[312724574,1706189445215,-1000.0,0.00049315,7]
[312724576,1706189445224,-659.44,0.00049315,31]
[312724578,1706189445233,-500.0,0.00049315,31]
[312724580,1706189445242,-500.0,0.00049315,31]
[312724581,1706189445250,-500.0,0.00049315,31]
[312724582,1706189445261,-294.42001138,0.00049315,31]
[312724583,1706189445270,-960.66,0.00049315,31]
[312724584,1706189445279,-1413.54,0.00049315,31]
[312724585,1706189445288,-3294.47,0.00049315,31]
[312724586,1706189445297,-557.9,0.00049315,31]
[312724587,1706189445306,-195.04133637,0.00049315,31]
[312724588,1706189445315,-500.0,0.00049315,31]
[312724589,1706189445325,-500.0,0.00049315,31]
[312724590,1706189445334,-500.0,0.00049315,31]
[312724591,1706189445343,-500.0,0.00049315,31]
[312724592,1706189445352,-500.0,0.00049315,31]
[312724593,1706189445362,-500.0,0.00049315,31]
[312724594,1706189445371,-500.0,0.00049315,31]
[312724595,1706189445380,-500.0,0.00049315,31]
[312724596,1706189445390,-500.0,0.00049315,31]
[312724597,1706189445398,-500.0,0.00049315,31]
[312724598,1706189445408,-500.0,0.00049315,31]
[312724599,1706189445417,-500.0,0.00049315,31]
[312724600,1706189445425,-500.0,0.00049315,31]
[312724601,1706189445434,-500.0,0.00049315,31]
[312724602,1706189445443,-500.0,0.00049315,31]
[312724603,1706189445454,-500.0,0.00049315,31]
[312724604,1706189445464,-658.39,0.00049315,31]
[312724605,1706189445474,-500.0,0.00049315,31]
[312724606,1706189445483,-500.0,0.00049315,31]
[312724607,1706189445493,-707.38,0.00049315,31]
[312724608,1706189445503,-806.49,0.00049315,31]
[312724609,1706189445511,-500.0,0.00049315,31]
[312724610,1706189445521,-500.0,0.00049315,31]
[312724611,1706189445530,-500.0,0.00049315,31]
[312724612,1706189445539,-534.89,0.00049315,31]
[312724613,1706189445548,-500.0,0.00049315,31]
[312724614,1706189445559,-1000.0,0.00049315,7]
[312724615,1706189445568,-500.0,0.00049315,31]
[312724616,1706189445577,-500.0,0.00049315,31]
[312724617,1706189445585,-500.0,0.00049315,31]
[312724618,1706189445594,-500.0,0.00049315,31]
[312724619,1706189445603,-500.0,0.00049315,31]
[312724620,1706189445617,-500.0,0.00049315,31]
[312724621,1706189445626,-500.0,0.00049315,31]
[312724622,1706189445636,-2660.25,0.00049315,31]
[312724623,1706189445645,-500.0,0.00049315,31]
[312724624,1706189445655,-500.0,0.00049315,31]
[312724625,1706189445664,-500.0,0.00049315,31]
[312724626,1706189445673,-654.66,0.00049315,31]
[312724627,1706189445683,-500.0,0.00049315,31]
[312724628,1706189445692,-500.0,0.00049315,31]
[312724629,1706189445701,-1220.14,0.00049315,31]
[312724630,1706189445711,-500.0,0.00049315,31]
[312724631,1706189445720,-500.0,0.00049315,31]
[312724632,1706189445729,-500.0,0.00049315,31]
[312724633,1706189445739,-500.0,0.00049315,31]
[312724634,1706189445748,-500.0,0.00049315,31]
[312724635,1706189445757,-697.52,0.00049315,31]
[312724636,1706189445767,-1219.85,0.00049315,31]
[312724637,1706189445776,-500.0,0.00049315,31]
[312724638,1706189445785,-500.0,0.00049315,31]
[312724639,1706189445794,-500.0,0.00049315,31]
[312724640,1706189445803,-500.0,0.00049315,31]
[312724641,1706189445814,-500.0,0.00049315,31]
[312724642,1706189445823,-500.0,0.00049315,31]
[312724643,1706189445832,-2328.6,0.00049315,31]
[312724644,1706189445841,-500.0,0.00049315,31]
[312724645,1706189445851,-500.0,0.00049315,31]
[312724646,1706189445860,-500.0,0.00049315,31]
[312724647,1706189445869,-500.0,0.00049315,31]
[312724648,1706189445878,-500.0,0.00049315,31]
[312724649,1706189445888,-553.77,0.00049315,31]
[312724650,1706189445897,-2392.7,0.00049315,31]
[312724651,1706189445906,-742.25,0.00049315,31]
[312724652,1706189445916,-500.0,0.00049315,31]
[312724653,1706189445925,-500.0,0.00049315,31]
[312724654,1706189445934,-501.5013888,0.00049315,31]
[312724655,1706189445946,-554.27680931,0.00049315,31]
[312724656,1706189445956,-500.0,0.00049315,31]
[312724658,1706189446113,-500.0,0.00049315,31]
[312724660,1706189446126,-500.0,0.00049315,31]
[312724662,1706189446136,-500.0,0.00049315,31]
[312724664,1706189446145,-500.0,0.00049315,31]
[312724666,1706189446154,-766.81,0.00049315,31]
[312724668,1706189446164,-500.0,0.00049315,31]
[312724670,1706189446173,-500.0,0.00049315,31]
[312724671,1706189446182,-500.0,0.00049315,31]
[312724672,1706189446191,-500.0,0.00049315,31]
[312724673,1706189446201,-500.0,0.00049315,31]
[312724674,1706189446210,-500.0,0.00049315,31]
[312724675,1706189446220,-720.22,0.00049315,31]
[312724676,1706189446229,-500.0,0.00049315,31]
[312724677,1706189446239,-500.0,0.00049315,31]
[312724678,1706189446249,-506.85,0.00049315,31]
[312724679,1706189446259,-2585.71,0.00049315,31]
[312724680,1706189446269,-500.0,0.00049315,31]
[312724681,1706189446278,-895.53,0.00049315,2]
[312724683,1706189446287,-500.0,0.00049315,31]
[312724685,1706189446297,-500.0,0.00049315,31]
[312724687,1706189446307,-1966.47,0.00049315,30]
[312724689,1706189446318,-500.0,0.00049315,31]
[312724690,1706189446328,-500.0,0.00049315,31]
[312724691,1706189446337,-500.0,0.00049315,31]
[312724693,1706189446346,-500.0,0.00049315,31]
[312724695,1706189446355,-568.09,0.00049315,31]
[312724697,1706189446365,-500.0,0.00049315,31]
[312724698,1706189446374,-500.0,0.00049315,31]
[312724699,1706189446383,-500.0,0.00049315,31]
[312724700,1706189446393,-500.0,0.00049315,31]
[312724701,1706189446402,-152.71290326,0.00049315,31]
[312724702,1706189446411,-1097.13,0.00049315,31]
[312724703,1706189446420,-500.0,0.00049315,31]
[312724704,1706189446429,-500.0,0.00049315,14]
[312724705,1706189446438,-563.0,0.00049315,31]
[312724706,1706189446447,-678.21,0.00049315,31]
[312724707,1706189446456,-500.0,0.00049315,31]
[312724708,1706189446465,-500.0,0.00049315,31]
[312724709,1706189446475,-500.0,0.00049315,31]
[312724710,1706189446484,-505.22,0.00049315,31]
[312724711,1706189446493,-1184.05,0.00049315,7]
[312724712,1706189446502,-500.0,0.00049315,31]
[312724713,1706189446511,-1978.23,0.00049315,31]
[312724714,1706189446520,-1000.0,0.00049315,30]
[312724715,1706189446529,-500.0,0.00049315,31]
[312724716,1706189446539,-775.02,0.00049315,31]
[312724717,1706189446548,-500.0,0.00049315,31]
[312724718,1706189446557,-500.0,0.00049315,31]
[312724719,1706189446568,-500.0,0.00049315,31]
[312724720,1706189446577,-500.0,0.00049315,31]
[312724721,1706189446586,-500.0,0.00049315,31]
[312724722,1706189446595,-500.0,0.00049315,31]
[312724723,1706189446604,-500.0,0.00049315,31]
[312724724,1706189446617,-500.0,0.00049315,31]